bitfinex-derivatives/quotes_BTCF0:USTF0_20241117
["timestamp","ask_amount","ask_price","bid_price","bid_amount"]
[1731844999547,0.00011008,90769.0,90767.0,0.09900017]
[1731844999754,0.00011008,90769.0,90768.0,0.11017098]
[1731845000354,0.00011008,90769.0,90768.0,1.61017098]
[1731845001950,0.00011008,90769.0,90768.0,1.63111232]
[1731845002146,0.00011008,90769.0,90768.0,1.63463548]
[1731845002342,0.00011008,90769.0,90768.0,1.99543548]
[1731845002545,0.0051,90775.0,90774.0,0.055079]
[1731845002739,0.00055,90784.0,90781.0,0.055074]
[1731845002740,0.0051,90782.0,90781.0,0.055074]
[1731845002940,0.00055,90784.0,90783.0,0.055073]
[1731845003345,0.00055,90784.0,90783.0,1.555073]
[1731845003742,0.00055,90784.0,90783.0,1.66522517]
[1731845004152,0.00055,90784.0,90783.0,2.01677326]
[1731845004351,0.00055,90784.0,90783.0,2.0203238]
[1731845005548,0.00055,90784.0,90783.0,1.6898838]
[1731845006046,0.00055,90784.0,90783.0,1.68633326]
[1731845006251,0.00055,90784.0,90783.0,1.68992332]
[1731845006952,0.00055,90784.0,90783.0,1.73316021]
[1731845007361,0.00055,90784.0,90783.0,1.73895694]
[1731845008360,0.0051,90789.0,90788.0,0.05507]
[1731845008563,0.00011209,90792.0,90791.0,0.055068]
[1731845008865,0.00011209,90792.0,90791.0,0.05865779]
[1731845009256,0.055064,90799.0,90793.0,0.055067]
[1731845009450,0.055064,90799.0,90794.0,0.00358979]
[1731845009654,0.055064,90799.0,90795.0,0.00358979]
[1731845009956,0.055064,90799.0,90796.0,0.00358979]
[1731845010157,0.055064,90799.0,90797.0,0.00358979]
[1731845010355,0.055064,90799.0,90798.0,0.00358979]
[1731845011259,0.00010313,90800.0,90798.0,0.00358979]
[1731845011455,0.00010313,90800.0,90799.0,0.00358979]
[1731845011660,0.00010313,90800.0,90799.0,0.00946817]
[1731845011861,0.00010313,90800.0,90799.0,0.11968692]
[1731845013155,0.0051,90807.0,90799.0,0.11968692]
[1731845013359,0.0051,90813.0,90808.0,0.055058]
[1731845013557,0.0051,90819.0,90808.0,0.06452617]
[1731845013867,0.0051,90819.0,90808.0,0.00946817]
[1731845014067,0.0328,90822.0,90809.0,0.00946817]
[1731845014259,0.00010878,90815.0,90810.0,0.00946817]
[1731845014465,0.00010878,90815.0,90799.0,0.26333925]
[1731845014466,0.055056,90812.0,90811.0,0.00946817]
[1731845014663,0.36090878,90815.0,90800.0,0.19639943]
[1731845014664,0.055061,90803.0,90800.0,0.19639943]
[1731845014860,0.087562,90802.0,90799.0,8.478e-05]
[1731845015061,0.055063,90800.0,90799.0,8.478e-05]
[1731845015556,0.0325,90802.0,90799.0,8.478e-05]
[1731845015760,0.087562,90802.0,90799.0,0.05514778]
[1731845016869,0.0316,90801.0,90799.0,0.05514778]
[1731845017262,0.086663,90801.0,90799.0,8.478e-05]
[1731845017866,0.0312,90800.0,90799.0,8.478e-05]
[1731845019366,0.0325,90802.0,90799.0,8.478e-05]
[1731845019562,0.0325,90802.0,90801.0,0.055062]
[1731845019758,0.3608,90806.0,90799.0,8.478e-05]
[1731845019970,0.3608,90806.0,90805.0,0.05506]
[1731845020168,0.3608,90806.0,90805.0,1.55506]
[1731845020575,0.3608,90806.0,90805.0,1.66519276]
[1731845021273,0.00150879,90815.0,90814.0,0.055054]
[1731845021464,0.00010878,90815.0,90814.0,0.055054]
[1731845022075,0.00010878,90815.0,90814.0,0.16517948]
[1731845022662,0.0051,90825.0,90814.0,0.18692473]
[1731845022864,0.0326,90829.0,90828.0,0.055046]
[1731845023071,0.0301,90837.0,90835.0,0.055041]
[1731845023471,0.36385217,90838.0,90837.0,0.05504]
[1731845023771,0.36245216,90838.0,90837.0,0.05504]
[1731845024666,0.36245216,90838.0,90837.0,0.06083464]
[1731845026572,0.36245216,90838.0,90837.0,0.0644617]
[1731845026573,0.3608,90838.0,90837.0,0.0644617]
[1731845028179,0.055039,90839.0,90837.0,0.0094217]
[1731845028370,0.055039,90839.0,90838.0,0.0094217]
[1731845029473,0.055039,90839.0,90838.0,0.00362706]
[1731845032579,0.055044,90831.0,90830.0,0.19659792]
[1731845032784,0.055044,90831.0,90830.0,0.20602213]
[1731845033283,0.055044,90831.0,90830.0,0.06446921]
[1731845033481,0.055044,90831.0,90830.0,0.05866904]
[1731845033671,0.055044,90831.0,90830.0,0.05865357]
[1731845033882,0.00011403,90840.0,90830.0,0.00938404]
[1731845034079,0.00011403,90840.0,90838.0,0.05504]
[1731845034382,0.00011403,90840.0,90839.0,0.00360817]
[1731845034775,0.05515303,90840.0,90839.0,0.00360817]
[1731845035581,0.05515303,90840.0,90839.0,0.05864717]
[1731845036571,0.00011403,90840.0,90839.0,0.05864717]
[1731845037581,0.00011403,90840.0,90839.0,0.06447804]
[1731845039380,0.05515303,90840.0,90839.0,0.06452869]
[1731845039575,0.05515303,90840.0,90839.0,0.00948969]
[1731845040881,0.05515303,90840.0,90839.0,0.00364922]
[1731845041775,0.00011403,90840.0,90839.0,0.00362389]
[1731845041979,0.00011403,90840.0,90839.0,0.05866289]
[1731845042879,0.00011403,90840.0,90839.0,0.06450253]
[1731845043088,0.00011403,90840.0,90839.0,0.06452711]
[1731845044175,0.00011403,90840.0,90839.0,0.09732711]
[1731845044590,0.00011403,90840.0,90839.0,0.09148761]
[1731845045684,0.00011403,90840.0,90839.0,0.28836032]
[1731845046482,0.00011403,90840.0,90839.0,0.09733528]
[1731845046689,0.00011403,90840.0,90839.0,0.28841865]
[1731845046886,0.00011403,90840.0,90839.0,0.09148761]
[1731845047072,0.00011403,90840.0,90839.0,0.09733642]
[1731845047270,0.00011403,90840.0,90839.0,0.0973461]
[1731845048478,0.00011403,90840.0,90839.0,0.09733041]
[1731845049989,0.00011403,90840.0,90839.0,0.09729245]
[1731845051588,0.00011403,90840.0,90839.0,0.23920639]
[1731845051793,0.00011403,90840.0,90839.0,0.00945345]
[1731845051794,0.05515303,90840.0,90839.0,0.00945345]
[1731845051978,0.00011403,90840.0,90839.0,0.06449245]
[1731845052787,0.00011403,90840.0,90839.0,0.42529245]
[1731845052987,0.00011403,90840.0,90839.0,0.53537671]
[1731845055186,0.00011403,90840.0,90839.0,0.62497671]
[1731845055392,0.0051,90849.0,90839.0,0.62497671]
[1731845055393,0.0051,90849.0,90848.0,0.055034]
[1731845055590,0.55871266,90866.0,90848.0,0.00945345]
[1731845055591,0.49784177,90857.0,90848.0,0.00945345]
[1731845055889,0.0613,90860.0,90858.0,0.055028]
[1731845056196,0.0613,90860.0,90859.0,0.2069185]
[1731845056395,0.0613,90860.0,90859.0,0.00945345]
[1731845056587,0.06140128,90860.0,90859.0,0.00945345]
[1731845056777,0.06140128,90860.0,90859.0,0.00970731]
[1731845058797,0.05512728,90860.0,90859.0,0.00970731]
[1731845061699,0.05512728,90860.0,90859.0,0.0037329]
[1731845063191,0.05512728,90860.0,90841.0,0.33267065]
[1731845063192,0.38532728,90860.0,90844.0,0.19746505]
[1731845063393,0.055032,90851.0,90845.0,0.00987671]
[1731845063697,0.055032,90851.0,90843.0,0.19746505]
[1731845063698,0.055032,90851.0,90849.0,0.055033]
[1731845063896,0.055032,90851.0,90850.0,0.00379256]
[1731845064688,0.055032,90851.0,90850.0,0.00990902]
[1731845066095,0.3608,90857.0,90851.0,0.055032]
[1731845066303,0.3608,90857.0,90852.0,0.00990902]
[1731845066607,0.1318628,90855.0,90853.0,0.06494002]
[1731845066804,0.05503,90855.0,90854.0,0.01758901]
[1731845066999,0.055036,90844.0,90842.0,0.19746505]
[1731845067297,0.055036,90844.0,90833.0,0.32919855]
[1731845067298,0.13186852,90844.0,90836.0,0.19746505]
[1731845067501,0.055038,90842.0,90840.0,0.055038]
[1731845068600,0.10457,90843.0,90842.0,0.055037]
[1731845069303,0.10457,90843.0,90842.0,1.555037]
[1731845069896,0.159607,90843.0,90842.0,1.555037]
[1731845070110,0.159607,90843.0,90842.0,1.5]
[1731845070293,0.21314764,90843.0,90842.0,1.5]
[1731845070604,0.159607,90843.0,90842.0,1.5]
[1731845071199,0.26943672,90843.0,90842.0,1.5]
[1731845071395,0.26945076,90843.0,90842.0,1.5]
[1731845071591,0.10457,90843.0,90842.0,1.5]
[1731845072496,0.23648119,90843.0,90842.0,1.5]
[1731845072702,0.23647904,90843.0,90842.0,1.5]
[1731845073807,0.23647904,90843.0,90842.0,1.54355832]
[1731845073992,0.10457,90843.0,90842.0,1.851104]
[1731845074591,0.10457,90843.0,90842.0,1.65363895]
[1731845074592,0.23647904,90843.0,90842.0,1.65363895]
[1731845075005,0.23647904,90843.0,90842.0,1.66134417]
[1731845075207,0.10457,90843.0,90842.0,1.66134417]
[1731845075500,0.23647904,90843.0,90842.0,1.66134417]
[1731845075808,0.10457,90843.0,90842.0,1.66134417]
[1731845076903,0.10457,90843.0,90842.0,1.66748638]
[1731845077110,0.10457,90843.0,90842.0,1.72252338]
[1731845078904,0.10457,90843.0,90842.0,1.7263594]
[1731845080016,0.10457,90843.0,90842.0,1.72983223]
[1731845080304,0.10457,90843.0,90842.0,1.7263594]
[1731845080605,0.10457,90843.0,90842.0,1.70867595]
[1731845080915,0.10457,90843.0,90842.0,1.72634375]
[1731845081296,0.10457,90843.0,90842.0,1.70867595]
[1731845081499,0.10457,90843.0,90842.0,1.72636182]
[1731845084110,0.10457,90843.0,90842.0,1.72631941]
[1731845084403,0.10457,90843.0,90842.0,1.70867595]
[1731845084814,0.10457,90843.0,90842.0,1.72631944]
[1731845088008,0.159607,90843.0,90842.0,1.61623881]
[1731845088522,0.159607,90843.0,90842.0,1.80616404]
[1731845089010,0.159607,90843.0,90842.0,1.81391119]
[1731845089204,0.10457,90843.0,90842.0,1.81391119]
[1731845090107,0.10457,90843.0,90842.0,1.6163131]
[1731845091117,0.10457,90843.0,90842.0,1.81395011]
[1731845091419,0.10457,90843.0,90842.0,1.6163131]
[1731845092611,0.10457,90843.0,90842.0,1.61978672]
[1731845092919,0.10457,90843.0,90842.0,2.04992837]
[1731845093217,0.10457,90843.0,90842.0,2.3793305]
[1731845093517,0.10457,90843.0,90842.0,2.37887523]
[1731845093713,0.10457,90843.0,90842.0,2.37887657]
[1731845093916,0.10457,90843.0,90842.0,2.48896595]
[1731845094121,0.10457,90843.0,90842.0,2.15955373]
[1731845094311,0.10457,90843.0,90842.0,2.13836233]
[1731845094508,0.10457,90843.0,90842.0,2.05582304]
[1731845094706,0.10457,90843.0,90842.0,1.72639591]
[1731845094916,0.10457,90843.0,90842.0,1.72987036]
[1731845095118,0.10457,90843.0,90842.0,1.72639591]
[1731845098013,0.10457,90843.0,90842.0,1.72631414]
[1731845098214,0.10457,90843.0,90842.0,1.72401687]
[1731845098425,0.10457,90843.0,90842.0,1.72631371]
[1731845099516,0.10457,90843.0,90842.0,2.05574084]
[1731845099908,0.10457,90843.0,90842.0,2.48585335]
[1731845100116,0.10457,90843.0,90842.0,2.15642622]
[1731845100320,0.10457,90843.0,90842.0,1.72631371]
[1731845100916,0.10457,90843.0,90842.0,1.7264303]
[1731845101221,0.10457,90843.0,90842.0,1.99012986]
[1731845101524,0.10457,90843.0,90842.0,1.7264303]
[1731845101720,0.10457,90843.0,90842.0,1.99013911]
[1731845102226,0.10457,90843.0,90842.0,1.7264303]
[1731845103510,0.10457,90843.0,90842.0,1.7565303]
[1731845103719,0.10457,90843.0,90842.0,1.75644833]
[1731845104019,0.10457,90843.0,90842.0,1.72634833]
[1731845104207,0.10457,90843.0,90842.0,1.70867595]
[1731845104411,0.10457,90843.0,90842.0,1.72637378]
[1731845104807,0.23664439,90843.0,90842.0,1.72637378]
[1731845105022,0.23664439,90843.0,90842.0,1.99007512]
[1731845105023,0.10457,90843.0,90842.0,1.99007512]
[1731845105211,0.10457,90843.0,90842.0,1.72637378]
[1731845106215,0.13207899,90846.0,90842.0,1.72637378]
[1731845106417,0.16488076,90853.0,90845.0,0.415836]
[1731845106618,0.0051,90854.0,90852.0,0.19775972]
[1731845106619,0.16488076,90854.0,90852.0,0.19775972]
[1731845106818,0.16488076,90855.0,90854.0,0.05503]
[1731845107018,0.16488076,90856.0,90855.0,0.055029]
[1731845107225,0.16488076,90857.0,90856.0,0.055029]
[1731845107519,0.13214219,90860.0,90859.0,0.055027]
[1731845107719,0.00010128,90860.0,90859.0,0.07289035]
[1731845108112,0.13211858,90860.0,90859.0,0.07289035]
[1731845109122,0.13211858,90860.0,90859.0,0.18295038]
[1731845109425,0.00010128,90860.0,90859.0,0.44653162]
[1731845109725,0.00010128,90860.0,90859.0,1.94653162]
[1731845110123,0.00010128,90860.0,90859.0,1.94642961]
[1731845110317,0.00010128,90860.0,90859.0,1.68284837]
[1731845110630,0.00010128,90860.0,90859.0,1.94642961]
[1731845110925,0.00010128,90860.0,90859.0,1.68284644]
[1731845111319,0.00010128,90860.0,90859.0,1.66508703]
[1731845111519,0.00010128,90860.0,90859.0,1.68292057]
[1731845112428,0.00010128,90860.0,90859.0,1.72691142]
[1731845112929,0.13196974,90869.0,90859.0,2.41791142]
[1731845113125,0.00165106,90875.0,90874.0,0.055018]
[1731845113321,0.00165106,90875.0,90874.0,0.33606496]
[1731845113517,0.00165106,90875.0,90874.0,0.07285154]
[1731845113719,0.00165106,90875.0,90874.0,1.68291157]
[1731845113914,0.00165106,90875.0,90874.0,1.94612499]
[1731845114125,0.00165106,90875.0,90874.0,1.68291157]
[1731845114628,0.00165106,90875.0,90874.0,1.68257418]
[1731845115215,0.00165106,90875.0,90874.0,1.87981503]
[1731845115517,0.00165106,90875.0,90874.0,1.68257418]
[1731845116122,0.13196974,90884.0,90874.0,1.65304456]
[1731845116325,0.13196974,90885.0,90883.0,0.3608]
[1731845116523,0.13196974,90885.0,90884.0,0.06489937]
[1731845116923,0.13196974,90885.0,90884.0,0.17492913]
[1731845117120,0.00014133,90886.0,90885.0,0.055011]
[1731845117325,0.13211107,90886.0,90885.0,0.06489837]
[1731845117726,0.13211107,90886.0,90885.0,0.06486055]
[1731845117926,0.00464133,90886.0,90885.0,0.1748891]
[1731845119324,0.00464133,90886.0,90885.0,0.16882715]
[1731845119521,0.00464133,90886.0,90885.0,0.11381615]
[1731845119718,0.13661107,90886.0,90878.0,0.08904]
[1731845119924,0.13661107,90886.0,90885.0,0.16503955]
[1731845120227,0.00464133,90886.0,90885.0,0.055011]
[1731845120528,0.00464133,90886.0,90885.0,1.66503955]
[1731845120826,0.00464133,90886.0,90885.0,1.66882087]
[1731845121032,0.00464133,90886.0,90885.0,1.66503955]
[1731845122425,0.00464133,90886.0,90885.0,1.70828033]
[1731845124119,0.00464133,90886.0,90885.0,1.71204484]
[1731845124323,0.00464133,90886.0,90885.0,1.70828033]
[1731845124642,0.00464133,90886.0,90885.0,1.71204467]
[1731845125129,0.00464133,90886.0,90885.0,1.71204478]
[1731845125726,0.00464133,90886.0,90885.0,1.70828033]
[1731845125934,0.00464133,90886.0,90885.0,1.71204783]
[1731845126421,0.00464133,90886.0,90885.0,1.80108783]
[1731845127333,0.00464133,90886.0,90885.0,1.80713669]
[1731845128130,0.00464133,90886.0,90885.0,1.79732033]
[1731845128434,0.00464133,90886.0,90885.0,1.81473225]
[1731845128627,0.0051,90902.0,90899.0,0.055003]
[1731845128929,0.054998,90908.0,90899.0,0.05878288]
[1731845129138,0.36220001,90909.0,90899.0,0.05878288]
[1731845129336,0.36220001,90909.0,90899.0,0.16881143]
[1731845129533,0.36220001,90909.0,90899.0,0.17496795]
[1731845130328,0.36220001,90909.0,90899.0,0.0099364]
[1731845130531,0.36220001,90909.0,90899.0,0.0649394]
[1731845130532,0.054999,90905.0,90899.0,0.0649394]
[1731845130730,0.36220001,90909.0,90899.0,0.174951]
[1731845131233,0.36220001,90909.0,90899.0,0.535751]
[1731845131533,0.36220001,90909.0,90899.0,0.54350185]
[1731845131534,0.00140001,90909.0,90899.0,0.54350185]
[1731845131735,0.00010878,90913.0,90899.0,2.4395732]
[1731845131736,0.46882901,90900.0,90899.0,2.4395732]
[1731845132033,0.39315861,90900.0,90899.0,2.44302868]
[1731845132230,0.39315861,90900.0,90899.0,2.5000732]
[1731845132534,0.3037296,90900.0,90899.0,2.5000732]
[1731845132730,0.00010878,90913.0,90912.0,0.054995]
[1731845132932,0.00010878,90913.0,90912.0,0.52243935]
[1731845133436,0.00010878,90913.0,90912.0,2.13245095]
[1731845134234,0.07709878,90913.0,90912.0,2.12479511]
[1731845134425,0.07709878,90913.0,90912.0,2.13258467]
[1731845134734,0.054987,90926.0,90917.0,0.054992]
[1731845134930,0.05499,90920.0,90918.0,0.00389253]
[1731845135122,0.05499,90920.0,90919.0,0.00389253]
[1731845135432,0.054991,90919.0,90899.0,8.148e-05]
[1731845135636,0.055002,90901.0,90899.0,8.148e-05]
[1731845135932,0.054999,90906.0,90900.0,0.06108877]
[1731845136123,8.843e-05,90909.0,90901.0,0.06108777]
[1731845136323,8.843e-05,90909.0,90902.0,0.00608677]
[1731845136522,0.05508543,90909.0,90903.0,0.00608677]
[1731845136822,0.05508543,90909.0,90904.0,0.00608677]
[1731845137129,8.843e-05,90909.0,90905.0,0.00614616]
[1731845137326,8.843e-05,90909.0,90908.0,0.054997]
[1731845137522,8.843e-05,90909.0,90908.0,0.06114316]
[1731845138334,8.843e-05,90909.0,90908.0,0.06115716]
[1731845138520,8.843e-05,90909.0,90908.0,0.00616016]
[1731845139731,8.843e-05,90909.0,90908.0,0.12395372]
[1731845139926,8.843e-05,90909.0,90908.0,0.15535372]
[1731845140240,8.843e-05,90909.0,90908.0,1.77595372]
[1731845141229,8.843e-05,90909.0,90908.0,1.8198059]
[1731845141431,8.843e-05,90909.0,90908.0,1.80585289]
[1731845141633,8.843e-05,90909.0,90908.0,1.8198301]
[1731845142936,8.843e-05,90909.0,90908.0,2.1498301]
[1731845143130,8.843e-05,90909.0,90908.0,2.17007279]
[1731845143327,0.00164994,90928.0,90908.0,2.17007279]
[1731845143530,0.00164994,90928.0,90927.0,0.054986]
[1731845143830,0.00164994,90928.0,90927.0,0.06896321]
[1731845145338,0.00164994,90928.0,90927.0,1.56896321]
[1731845145536,0.00164994,90928.0,90927.0,1.56895458]
[1731845145935,0.00164994,90928.0,90927.0,1.6789323]
[1731845146241,9.974e-05,90933.0,90932.0,0.054983]
[1731845146430,9.974e-05,90933.0,90932.0,0.06895158]
[1731845147341,9.974e-05,90933.0,90932.0,0.07627991]
[1731845147730,9.974e-05,90933.0,90932.0,0.43362162]
[1731845148526,9.974e-05,90933.0,90932.0,1.57282162]
[1731845148931,9.974e-05,90933.0,90932.0,1.6827933]
[1731845149432,9.974e-05,90933.0,90932.0,1.70308042]
[1731845150040,9.974e-05,90933.0,90932.0,1.6827933]
[1731845151842,9.974e-05,90933.0,90932.0,1.66495468]
[1731845152141,9.974e-05,90933.0,90932.0,1.68235162]
[1731845152527,9.974e-05,90933.0,90932.0,1.878857]
[1731845152734,9.974e-05,90933.0,90932.0,1.68235162]
[1731845153632,9.974e-05,90933.0,90932.0,1.70233786]
[1731845153936,9.974e-05,90933.0,90932.0,1.98780324]
[1731845154140,9.974e-05,90933.0,90932.0,1.77131162]
[1731845154932,9.974e-05,90933.0,90932.0,1.79154463]
[1731845155132,9.974e-05,90933.0,90932.0,1.77131162]
[1731845155746,9.974e-05,90933.0,90932.0,1.77454012]
[1731845155933,9.974e-05,90933.0,90932.0,1.79236075]
[1731845157743,0.3608,90948.0,90932.0,1.73737775]
[1731845157943,0.3608,90948.0,90941.0,0.3608]
[1731845158248,0.054976,90944.0,90942.0,0.01782063]
[1731845158434,0.054976,90944.0,90943.0,0.01782063]
[1731845158844,0.054976,90944.0,90938.0,0.143939]
[1731845159143,0.054976,90944.0,90939.0,0.01392195]
[1731845159446,0.054976,90944.0,90940.0,0.01778725]
[1731845159748,0.054977,90942.0,90941.0,0.01778725]
[1731845160438,0.054977,90942.0,90941.0,0.01005181]
[1731845162244,0.054977,90942.0,90941.0,0.06502881]
[1731845162643,0.054977,90942.0,90941.0,0.01005181]
[1731845163139,0.054984,90930.0,90929.0,0.00344539]
[1731845163344,0.054984,90930.0,90929.0,0.00767469]
[1731845163638,0.3608,90933.0,90922.0,0.00164976]
[1731845163839,0.054988,90923.0,90922.0,0.00164976]
[1731845164142,0.415788,90923.0,90922.0,0.00164976]
[1731845164540,0.415788,90923.0,90912.0,0.00344539]
[1731845164742,0.415788,90923.0,90903.0,0.0051]
[1731845164743,0.415794,90914.0,90913.0,0.00764649]
[1731845164931,0.415794,90914.0,90901.0,0.19658855]
[1731845164932,0.055,90904.0,90901.0,0.19658855]
[1731845165135,0.055,90904.0,90894.0,0.00165002]
[1731845165136,0.055002,90900.0,90894.0,0.00165002]
[1731845165351,0.055002,90900.0,90899.0,0.00773217]
[1731845165534,0.055002,90900.0,90899.0,1.50773217]
[1731845165734,0.055002,90900.0,90899.0,0.00773217]
[1731845165939,0.385042,90900.0,90899.0,0.00773217]
[1731845166344,0.385042,90900.0,90894.0,0.00165002]
[1731845166345,0.46151649,90900.0,90894.0,0.00165002]
[1731845166648,0.0315,90902.0,90894.0,0.00165002]
[1731845166649,0.415805,90896.0,90894.0,0.00165002]
[1731845167232,0.415805,90896.0,90889.0,0.00013765]
[1731845167839,0.484055,90896.0,90890.0,1.5]
[1731845168544,0.42905,90896.0,90894.0,0.055006]
[1731845168733,0.06825,90896.0,90889.0,0.00013765]
[1731845169231,0.69842315,90896.0,90889.0,0.00013765]
[1731845169435,0.3608,90890.0,90889.0,0.00013765]
[1731845169640,0.3608,90890.0,90874.0,0.05586375]
[1731845169641,0.415808,90890.0,90874.0,0.05586375]
[1731845169846,0.055017,90875.0,90874.0,0.05586375]
[1731845170044,0.3608,90876.0,90874.0,0.05586375]
[1731845170244,0.3608,90876.0,90868.0,0.0016504]
[1731845170552,0.3608,90876.0,90873.0,0.055018]
[1731845170740,0.3608,90876.0,90874.0,1.50009472]
[1731845171045,0.3608,90876.0,90875.0,0.055017]
[1731845171237,0.08896,90889.0,90884.0,0.055012]
[1731845171550,0.08896,90889.0,90877.0,0.055016]
[1731845171741,0.055014,90881.0,90877.0,0.055016]
[1731845172044,0.055014,90881.0,90874.0,1.50009472]
[1731845172246,0.055012,90885.0,90878.0,0.055015]
[1731845172438,0.055017,90875.0,90874.0,1.50009472]
[1731845173147,0.3608,90881.0,90874.0,1.50009472]
[1731845173342,0.3608,90881.0,90875.0,0.055017]
[1731845173740,0.3608,90881.0,90874.0,1.50009472]
[1731845173943,0.3608,90881.0,90879.0,0.055015]
[1731845174435,0.055009,90889.0,90874.0,1.50009472]
[1731845174938,0.36224,90890.0,90888.0,0.055009]
[1731845175140,0.3608,90890.0,90888.0,0.055009]
[1731845176348,0.055001,90902.0,90889.0,0.11374808]
[1731845176552,0.055001,90902.0,90890.0,0.00372377]
[1731845176851,0.055001,90902.0,90891.0,0.00372377]
[1731845177053,0.055001,90902.0,90892.0,0.00372377]
[1731845177250,0.3608,90904.0,90895.0,0.055005]
[1731845177751,0.3608,90904.0,90895.0,0.05875318]
[1731845177947,0.3608,90904.0,90895.0,1.66877265]
[1731845178142,0.3608,90904.0,90903.0,0.055]
[1731845178345,0.054994,90914.0,90903.0,0.05874818]
[1731845178550,0.054994,90914.0,90904.0,0.05874718]
[1731845178741,0.054994,90914.0,90905.0,0.00374818]
[1731845178944,0.054994,90914.0,90906.0,0.00374818]
[1731845179145,9.385e-05,90912.0,90904.0,0.054999]
[1731845179346,9.385e-05,90912.0,90905.0,0.00373983]
[1731845179548,0.054998,90907.0,90906.0,0.00373983]
[1731845179947,0.055,90905.0,90898.0,0.055003]
[1731845180253,0.055,90905.0,90899.0,0.06469927]
[1731845180554,0.054996,90911.0,90900.0,0.00372867]
[1731845180750,0.054997,90910.0,90902.0,0.055001]
[1731845180949,9.385e-05,90912.0,90895.0,1.5]
[1731845180950,9.385e-05,90912.0,90903.0,0.00372867]
[1731845181153,9.385e-05,90912.0,90909.0,0.054997]
[1731845181457,9.385e-05,90912.0,90897.0,0.3608]
[1731845181660,0.054996,90911.0,90902.0,0.055001]
[1731845181954,0.054997,90910.0,90903.0,0.05873864]
[1731845182161,9.385e-05,90912.0,90904.0,0.00373864]
[1731845182343,9.385e-05,90912.0,90905.0,0.00373864]
[1731845182548,0.054998,90907.0,90906.0,0.00373864]
[1731845183444,9.385e-05,90912.0,90906.0,0.00373864]
[1731845183445,9.385e-05,90912.0,90911.0,0.054996]
[1731845185352,9.385e-05,90912.0,90911.0,0.05873417]
[1731845185555,9.385e-05,90912.0,90911.0,0.06471766]
[1731845186152,9.385e-05,90912.0,90911.0,1.56471766]
[1731845186455,9.385e-05,90912.0,90911.0,1.67471474]
[1731845188747,9.385e-05,90912.0,90911.0,1.68222621]
[1731845191751,9.385e-05,90912.0,90911.0,1.66499308]
[1731845191948,9.385e-05,90912.0,90911.0,1.6747307]
[1731845192150,9.385e-05,90912.0,90911.0,1.6197347]
[1731845192352,9.385e-05,90912.0,90911.0,0.00973762]
[1731845192756,9.385e-05,90912.0,90911.0,0.00374455]
[1731845192947,9.385e-05,90912.0,90911.0,0.00967739]
[1731845193144,0.05508885,90912.0,90911.0,0.00374455]
[1731845193753,9.385e-05,90912.0,90911.0,0.00374455]
[1731845194756,9.385e-05,90912.0,90911.0,0.00373545]
[1731845195561,9.385e-05,90912.0,90910.0,0.054996]
[1731845195765,0.054996,90910.0,90906.0,1.564]
[1731845195955,9.385e-05,90912.0,90907.0,0.00372455]
[1731845196157,0.054997,90910.0,90908.0,0.00372455]
[1731845196357,0.054997,90910.0,90909.0,0.00372455]
[1731845197065,0.054997,90910.0,90909.0,0.00371139]
[1731845198765,0.054997,90910.0,90909.0,0.00369943]
[1731845199956,9.385e-05,90912.0,90910.0,0.054996]
[1731845200157,0.05508885,90912.0,90910.0,0.054996]
[1731845201071,0.05508885,90912.0,90911.0,0.00371007]
[1731845201254,9.385e-05,90912.0,90908.0,0.054997]
[1731845201564,0.054996,90910.0,90909.0,0.00371006]
[1731845201762,0.054996,90910.0,90909.0,0.00966522]
[1731845202158,9.385e-05,90912.0,90909.0,0.00967589]
[1731845202355,0.054996,90911.0,90910.0,0.00967589]
[1731845204070,0.054996,90911.0,90910.0,0.06467189]
[1731845205059,0.054996,90911.0,90910.0,0.26126044]
[1731845205870,0.054996,90911.0,90910.0,0.054996]
[1731845206083,0.054996,90911.0,90910.0,0.26133558]
[1731845206375,0.18647249,90911.0,90910.0,0.26133558]
[1731845207073,0.054996,90911.0,90910.0,0.06474703]
[1731845207866,0.1868206,90911.0,90910.0,0.06474703]
[1731845208074,0.054996,90911.0,90910.0,0.06474703]
[1731845208372,0.1868206,90911.0,90910.0,0.06474703]
[1731845208775,0.054996,90911.0,90910.0,0.06474703]
[1731845208973,0.18682886,90911.0,90910.0,0.054996]
[1731845209274,0.18682886,90911.0,90910.0,0.06477053]
[1731845210976,0.13183286,90911.0,90910.0,0.06477053]
[1731845211183,9.385e-05,90912.0,90911.0,0.054996]
[1731845211479,9.385e-05,90912.0,90911.0,0.06477053]
[1731845211685,9.385e-05,90912.0,90911.0,0.07239917]
[1731845211877,9.385e-05,90912.0,90911.0,0.07237571]
[1731845212477,9.385e-05,90912.0,90911.0,0.0648786]
[1731845212681,9.385e-05,90912.0,90911.0,0.18248082]
[1731845213189,0.13192671,90912.0,90911.0,0.18248082]
[1731845213385,0.13192671,90912.0,90911.0,0.54328082]
[1731845215390,0.16496218,90918.0,90917.0,0.054992]
[1731845215573,0.16496218,90918.0,90917.0,0.07247974]
[1731845215973,0.16496218,90918.0,90917.0,1.74757682]
[1731845216378,0.16496218,90918.0,90917.0,1.73997165]
[1731845216579,0.16496218,90918.0,90917.0,1.74757677]
[1731845216890,0.16496218,90918.0,90917.0,2.07753677]
[1731845217488,0.16496218,90918.0,90917.0,2.07373648]
[1731845217693,0.16496218,90918.0,90917.0,2.07758366]
[1731845218183,0.16496218,90918.0,90917.0,1.74762366]
[1731845218576,0.16496218,90918.0,90917.0,1.78002366]
[1731845218990,0.16496218,90918.0,90917.0,1.78346998]
[1731845219192,0.054985,90929.0,90917.0,1.92226164]
[1731845219396,0.054985,90929.0,90926.0,0.054986]
[1731845219693,0.00175176,90931.0,90927.0,0.07251958]
[1731845219887,0.00175176,90931.0,90917.0,1.7981763]
[1731845219888,0.00175176,90931.0,90928.0,0.01753458]
[1731845220189,0.00175176,90931.0,90930.0,0.054984]
[1731845220396,0.00175176,90931.0,90930.0,0.07250478]
[1731845221984,0.00175176,90931.0,90930.0,0.07242332]
[1731845223994,0.00175176,90931.0,90930.0,0.11915811]
[1731845224993,0.00010179,90931.0,90930.0,0.11309265]
[1731845225295,0.00010179,90931.0,90930.0,0.10930287]
[1731845225596,0.00010179,90931.0,90930.0,0.11304852]
[1731845226986,0.00010179,90931.0,90930.0,0.11903121]
[1731845228493,0.00010179,90931.0,90930.0,0.11304852]
[1731845228998,0.00010179,90931.0,90930.0,0.22314252]
[1731845229294,0.00010179,90931.0,90930.0,1.72314252]
[1731845229889,0.00010179,90931.0,90930.0,1.72306155]
[1731845230089,0.00010179,90931.0,90930.0,1.72892679]
[1731845230499,0.00010179,90931.0,90930.0,1.72526211]
[1731845231290,0.00010179,90931.0,90930.0,1.81418211]
[1731845231694,0.00010179,90931.0,90930.0,1.82371175]
[1731845231896,0.00010179,90931.0,90930.0,1.81784651]